bitfinex/quotes_SOLUSD_20241202
["timestamp","ask_amount","ask_price","bid_price","bid_amount"]
[1733151695444,0.12549,226.16,226.08,10.0]
[1733151695734,137.0,226.17,226.1,5.0]
[1733151696040,137.0,226.19,226.1,5.0]
[1733151696243,137.0,226.19,226.1,10.0]
[1733151696714,137.0,226.19,226.12,10.0]
[1733151696915,137.0,226.21,226.12,10.0]
[1733151697216,137.0,226.21,226.12,5.0]
[1733151697531,139.87235953,226.21,226.08,5.0]
[1733151697741,5.87020906,226.2,226.03,10.0]
[1733151697940,20.0,226.16,226.05,5.0]
[1733151698141,20.0,226.08,226.06,5.0]
[1733151699018,20.0,226.08,226.05,5.0]
[1733151699220,20.0,226.08,226.06,5.0]
[1733151699517,20.0,226.08,226.05,5.0]
[1733151699716,20.0,226.08,226.06,5.0]
[1733151699914,137.0,226.23,226.13,5.0]
[1733151700125,139.7782939,226.23,226.13,5.0]
[1733151700324,137.0,226.23,226.16,5.0]
[1733151700548,137.0,226.24,226.18,5.0]
[1733151700727,15.6557,226.28,226.2,5.0]
[1733151700928,137.0,226.32,226.26,5.0]
[1733151701142,152.6557,226.35,226.26,10.0]
[1733151701461,0.25098,226.34,226.26,10.0]
[1733151701745,137.0,226.35,226.26,10.0]
[1733151701941,2.83186213,226.37,226.26,10.0]
[1733151701942,137.0,226.37,226.28,5.0]
[1733151702128,137.0,226.39,226.28,10.0]
[1733151702328,137.0,226.38,226.28,10.0]
[1733151702941,0.25098,226.36,226.26,10.0]
[1733151703149,0.25098,226.36,226.28,5.0]
[1733151703344,137.25098,226.36,226.28,5.0]
[1733151703647,137.25098,226.36,226.28,10.0]
[1733151703825,43.776884,226.32,226.28,10.0]
[1733151704541,20.0,226.33,226.3,5.0]
[1733151705144,20.0,226.36,226.3,5.0]
[1733151705445,137.0,226.4,226.33,10.0]
[1733151705625,137.0,226.43,226.35,5.0]
[1733151706942,137.0,226.49,226.41,5.0]
[1733151707148,137.0,226.54,226.41,5.0]
[1733151707353,0.25098,226.52,226.41,5.0]
[1733151707536,0.12549,226.48,226.41,5.0]
[1733151707734,137.0,226.53,226.41,5.0]
[1733151707923,137.0,226.53,226.39,5.0]
[1733151708119,137.0,226.48,226.41,5.0]
[1733151708345,43.902374,226.44,226.39,5.0]
[1733151709332,137.0,226.47,226.39,5.0]
[1733151709640,137.0,226.47,226.43,5.0]
[1733151710227,137.0,226.47,226.41,5.0]
[1733151710742,20.0,226.43,226.38,6.3179]
[1733151711045,23.776884,226.42,226.27,6.4725]
[1733151711242,20.0,226.35,226.27,6.4725]
[1733151711749,137.0,226.41,226.27,6.4725]
[1733151712044,137.0,226.48,226.28,5.0]
[1733151712237,20.0,226.43,226.28,5.0]
[1733151712448,20.0,226.43,226.29,0.12549]
[1733151713950,20.0,226.43,226.31,0.25098]
[1733151714341,20.0,226.49,226.33,0.12549]
[1733151715049,3.2088839,226.53,226.35,0.37647]
[1733151715233,137.0,226.59,226.37,0.25098]
[1733151715750,137.0,226.58,226.37,0.25098]
[1733151716640,23.776884,226.56,226.37,0.25098]
[1733151716838,23.776884,226.52,226.37,0.25098]
[1733151717151,20.0,226.49,226.37,0.25098]
[1733151717350,20.0,226.49,226.37,0.12549]
[1733151717526,23.776884,226.48,226.37,0.12549]
[1733151717727,20.0,226.45,226.37,0.12549]
[1733151718135,20.0,226.45,226.36,16.037]
[1733151718334,23.776884,226.44,226.36,16.037]
[1733151718660,23.776884,226.44,226.29,22.6997]
[1733151718661,20.0,226.37,226.29,22.6997]
[1733151718834,20.0,226.33,226.29,22.6997]
[1733151719554,20.0,226.36,226.29,22.6997]
[1733151720136,139.8451465,226.47,226.29,22.6997]
[1733151720137,43.776884,226.43,226.29,22.6997]
[1733151720446,43.776884,226.43,226.3,0.12549]
[1733151720658,43.776884,226.43,226.3,0.25098]
[1733151721148,43.776884,226.43,226.3,0.12549]
[1733151721455,43.776884,226.43,226.29,22.6997]
[1733151722142,43.776884,226.43,226.3,0.12549]
[1733151722340,20.0,226.46,226.3,0.25098]
[1733151722532,70.0,226.65,226.3,0.25098]
[1733151722533,137.0,226.48,226.3,1.13228924]
[1733151722737,137.0,226.51,226.32,0.12549]
[1733151723144,137.0,226.54,226.32,23.902374]
[1733151723359,137.0,226.58,226.37,0.12549]
[1733151723660,137.0,226.56,226.37,0.12549]
[1733151723834,137.0,226.55,226.37,0.12549]
[1733151724032,137.0,226.56,226.39,0.25098]
[1733151724257,137.0,226.56,226.4,0.12549]
[1733151724639,137.0,226.59,226.4,0.12549]
[1733151724833,20.0,226.56,226.4,0.12549]
[1733151725040,137.0,226.58,226.4,0.12549]
[1733151725243,137.0,226.61,226.42,0.37647]
[1733151725538,137.0,226.6,226.42,0.37647]
[1733151726554,20.0,226.57,226.42,0.37647]
[1733151727760,20.0,226.53,226.42,0.37647]
[1733151727956,20.0,226.53,226.42,0.25098]
[1733151729751,20.0,226.56,226.43,0.12549]
[1733151730265,20.0,226.62,226.43,0.12549]
[1733151730445,20.0,226.61,226.43,0.12549]
[1733151731553,0.5347959,226.64,226.48,23.902374]
[1733151731762,0.5347959,226.64,226.53,0.12549]
[1733151732269,0.5347959,226.64,226.55,0.25098]
[1733151732961,0.5347959,226.64,226.54,15.9916]
[1733151734049,23.776884,226.62,226.51,6.4325]
[1733151734250,23.776884,226.62,226.48,15.8799]
[1733151734251,43.776884,226.58,226.48,15.8799]
[1733151735571,20.0,226.53,226.48,15.8799]
[1733151736140,137.0,226.59,226.48,15.8799]
[1733151736359,20.0,226.55,226.48,15.8799]
[1733151736957,137.0,226.57,226.35,10.0]
[1733151736958,20.0,226.54,226.35,28.902374]
[1733151737263,20.0,226.54,226.35,6.0188]
[1733151737466,20.0,226.53,226.35,6.0188]
[1733151737959,20.0,226.54,226.35,6.0188]
[1733151738168,20.0,226.5,226.35,6.0188]
[1733151738469,5.0,226.56,226.35,6.0188]
[1733151738470,20.0,226.44,226.35,6.0188]
[1733151738643,157.0,226.45,226.35,6.0188]
[1733151738644,20.0,226.45,226.35,6.0188]
[1733151739050,20.0,226.48,226.35,6.0188]
[1733151739247,20.0,226.46,226.35,6.0188]
[1733151740272,0.12549,226.53,226.37,0.12549]
[1733151740570,0.25098,226.56,226.38,0.12549]
[1733151740766,0.12549,226.54,226.38,0.12549]
[1733151741175,137.0,226.55,226.38,0.12549]
[1733151741349,137.0,226.55,226.39,0.12549]
[1733151742053,20.0,226.52,226.38,0.25098]
[1733151742674,20.0,226.52,226.37,0.12549]
[1733151742971,20.0,226.48,226.35,6.0188]
[1733151743146,20.0,226.48,226.36,0.12549]
[1733151744370,20.0,226.47,226.35,6.0188]
[1733151744963,20.0,226.43,226.35,6.0188]
[1733151747286,20.0,226.42,226.35,6.0188]
[1733151748872,137.0,226.48,226.35,6.0188]
[1733151750392,20.0,226.44,226.35,6.0188]
[1733151750978,20.12549,226.47,226.35,6.0188]
[1733151751174,0.12549,226.46,226.35,6.0188]
[1733151753861,2.76553298,226.51,226.36,23.902374]
[1733151754175,137.0,226.54,226.36,23.902374]
[1733151754564,0.25098,226.53,226.36,23.902374]
[1733151754766,137.0,226.53,226.37,0.25098]
[1733151754968,15.9319,226.61,226.41,16.4379]
[1733151754969,137.0,226.6,226.41,16.4379]
[1733151755268,0.25098,226.59,226.42,23.902374]
[1733151755467,0.12549,226.57,226.43,6.6263]
[1733151756073,137.0,226.58,226.43,6.6263]
[1733151756479,23.902374,226.57,226.43,6.6263]
[1733151756683,20.0,226.53,226.43,6.6263]
[1733151757063,20.0,226.49,226.43,6.6263]
[1733151757367,20.0,226.48,226.41,16.4379]
[1733151757569,20.0,226.47,226.37,6.403]
[1733151757770,157.0,226.47,226.37,6.403]
[1733151757973,20.0,226.47,226.37,6.403]
[1733151758169,20.12549,226.48,226.37,6.403]
[1733151758596,137.0,226.47,226.37,6.403]
[1733151758978,20.0,226.44,226.37,6.403]
[1733151761594,137.0,226.46,226.37,6.403]
[1733151761595,20.0,226.43,226.37,6.403]
[1733151761972,20.0,226.43,226.35,15.5973]
[1733151762364,6.0394,226.51,226.32,6.3608]
[1733151762365,20.0,226.38,226.32,6.3608]
[1733151762560,20.0,226.38,226.29,16.3605]
[1733151762561,20.0,226.38,226.25,6.3407]
[1733151763782,20.0,226.37,226.25,6.3407]
[1733151764190,20.0,226.33,226.25,6.3407]
[1733151764684,20.0,226.33,226.23,16.3605]
[1733151764899,20.0,226.36,226.23,16.3605]
[1733151765103,20.0,226.35,226.23,16.3605]
[1733151765303,20.0,226.3,226.2,6.3081]
[1733151765601,20.0,226.26,226.08,6.309]
[1733151765985,20.0,226.26,226.09,0.25098]
[1733151766404,20.0,226.26,226.08,6.309]
[1733151767207,137.0,226.25,226.08,6.309]
[1733151767414,20.0,226.22,226.08,6.309]
[1733151767913,20.0,226.17,226.08,6.309]
[1733151768407,20.0,226.16,226.08,6.309]
[1733151769609,20.0,226.17,226.08,6.309]
[1733151769812,41.38584134,226.09,226.03,22.2444]
[1733151770114,20.69292067,226.04,226.03,22.2444]
[1733151770286,20.69292067,226.04,225.97,23.0547]
[1733151770604,20.69292067,225.98,225.97,23.0547]
[1733151771605,20.69292067,225.98,225.97,6.6296]
[1733151772999,41.38584134,225.98,225.92,6.4043]
[1733151773181,20.69292067,225.93,225.92,6.4043]
[1733151773380,20.69292067,225.93,225.92,5.9043]
[1733151774104,20.69292067,225.93,225.92,29.806674]
[1733151774415,20.69292067,225.93,225.92,5.9043]
[1733151774799,20.69292067,225.94,225.92,5.9043]
[1733151775605,20.69292067,225.93,225.92,29.681184]
[1733151775814,20.69292067,225.93,225.85,0.5347959]
[1733151775984,20.69292067,225.86,225.85,0.5347959]
[1733151776398,41.38584134,225.86,225.85,0.5347959]
[1733151781189,41.38584134,225.86,225.85,9.59e-05]
[1733151782103,62.07876201,225.86,225.85,9.59e-05]
[1733151782307,65.17552207,225.86,225.85,9.59e-05]
[1733151782611,93.13614047,225.86,225.85,9.59e-05]
[1733151782819,93.13614047,225.86,225.64,6.2916]
[1733151782820,5.0,225.84,225.64,6.2916]
[1733151783003,20.69292067,225.65,225.64,6.2916]
[1733151783586,20.69292067,225.65,225.62,0.5347959]
[1733151783907,20.69292067,225.63,225.62,0.5347959]
[1733151784306,41.38584134,225.63,225.62,0.5347959]
[1733151786909,41.38584134,225.63,225.62,9.59e-05]
[1733151787425,62.20425201,225.63,225.62,9.59e-05]
[1733151787611,41.51133134,225.63,225.62,9.59e-05]
[1733151788210,62.20425201,225.63,225.62,9.59e-05]
[1733151788712,41.38584134,225.63,225.62,9.59e-05]
[1733151789614,20.69292067,225.63,225.62,9.59e-05]
[1733151789789,41.38584134,225.63,225.62,9.59e-05]
[1733151790198,41.51133134,225.63,225.62,9.59e-05]
[1733151791023,41.38584134,225.63,225.62,9.59e-05]
[1733151791392,20.69292067,225.63,225.62,9.59e-05]
[1733151793110,20.69292067,225.68,225.62,0.1255859]
[1733151793313,20.69292067,225.69,225.62,20.81850657]
[1733151793504,20.69292067,225.71,225.64,0.12549]
[1733151793705,20.69292067,225.67,225.62,0.1255859]
[1733151793921,20.69292067,225.63,225.62,9.59e-05]
[1733151794300,20.69292067,225.64,225.62,9.59e-05]
[1733151794495,20.69292067,225.67,225.62,0.1255859]
[1733151794718,20.69292067,225.83,225.62,0.1255859]
[1733151794719,20.69292067,225.7,225.62,0.1255859]
[1733151795010,20.69292067,225.66,225.62,0.1255859]
[1733151795203,20.69292067,225.63,225.62,9.59e-05]
[1733151796408,20.69292067,225.66,225.62,0.1255859]
[1733151796604,20.69292067,225.64,225.62,0.1255859]
[1733151796927,20.69292067,225.63,225.62,0.1255859]
[1733151797122,20.69292067,225.63,225.62,9.59e-05]
[1733151797320,20.69292067,225.72,225.62,0.1255859]
[1733151797527,20.69292067,225.72,225.62,9.59e-05]
[1733151797707,20.0,225.69,225.62,9.59e-05]
[1733151798224,20.69292067,225.63,225.62,9.59e-05]
[1733151798904,20.0,225.75,225.62,9.59e-05]
[1733151799415,137.12549,225.78,225.62,0.1255859]
[1733151799808,137.12549,225.78,225.62,9.59e-05]
[1733151799809,0.12549,225.77,225.62,9.59e-05]
[1733151800131,137.0,225.72,225.62,9.59e-05]
[1733151800424,0.12549,225.72,225.62,9.59e-05]
[1733151800725,20.0,225.69,225.62,9.59e-05]
[1733151801023,20.12549,225.72,225.62,9.59e-05]
[1733151801230,20.0,225.66,225.41,5.0]
[1733151801403,0.12549,225.6,225.41,5.0]
[1733151801605,20.0,225.59,225.41,5.0]
[1733151802302,20.0,225.59,225.4,7.0452959]
[1733151802500,20.0,225.59,225.42,5.0]
[1733151802706,20.0,225.59,225.44,0.12549]
[1733151803523,20.0,225.59,225.41,5.0]
[1733151803702,20.0,225.59,225.4,11.4662959]
[1733151803906,20.0,225.59,225.4,7.0452959]
[1733151804115,20.0,225.57,225.4,7.0452959]
[1733151804318,5.0,225.63,225.4,7.0452959]
[1733151804319,20.0,225.53,225.4,7.0452959]
[1733151804503,0.12549,225.52,225.4,7.0452959]
[1733151804723,0.12549,225.52,225.4,0.5347959]
[1733151805118,20.12549,225.52,225.4,0.5347959]
[1733151805324,0.12549,225.47,225.4,0.5347959]
[1733151805919,20.0,225.48,225.4,0.5347959]
[1733151806155,20.0,225.52,225.4,0.5347959]
[1733151806421,20.0,225.48,225.4,0.5347959]
[1733151806826,0.12549,225.51,225.4,0.5347959]
[1733151807200,20.0,225.52,225.4,0.5347959]
[1733151807407,0.25098,225.51,225.4,0.5347959]
[1733151808622,0.12549,225.51,225.4,0.5347959]
[1733151808810,10.0,225.59,225.4,0.5347959]
[1733151808811,137.0,225.57,225.4,0.5347959]
[1733151809235,0.25098,225.56,225.4,0.5347959]
[1733151810019,0.12549,225.56,225.4,0.5347959]
[1733151810347,137.0,225.57,225.42,16.4706]
[1733151810513,137.0,225.57,225.45,23.776884]
[1733151810836,137.0,225.63,225.45,23.776884]
[1733151811007,137.0,225.62,225.46,0.12549]
[1733151811208,137.0,225.62,225.45,23.776884]
[1733151811431,137.0,225.62,225.46,0.12549]
[1733151811628,137.0,225.65,225.48,0.12549]
[1733151812010,137.0,225.66,225.48,0.12549]
[1733151812424,137.0,225.66,225.47,23.776884]
[1733151812425,0.25098,225.65,225.47,23.776884]
[1733151812619,137.12549,225.63,225.45,23.776884]
[1733151812914,137.0,225.58,225.4,0.5347959]
[1733151813115,20.0,225.55,225.4,0.5347959]
[1733151813937,20.0,225.54,225.4,0.5347959]
[1733151814225,20.0,225.53,225.4,0.5347959]
[1733151814431,20.0,225.52,225.4,0.5347959]
[1733151815037,20.0,225.56,225.4,0.5347959]
[1733151815537,20.0,225.56,225.41,23.902374]
[1733151816134,20.0,225.58,225.44,23.776884]
[1733151816341,0.12549,225.57,225.43,23.0058]
[1733151816517,20.0,225.53,225.43,23.0058]
[1733151816709,20.0,225.52,225.43,23.0058]
[1733151816913,20.0,225.52,225.4,0.5347959]
[1733151817326,20.0,225.51,225.4,0.5347959]
[1733151818345,0.12549,225.53,225.4,0.5347959]
[1733151818517,157.0,225.54,225.4,0.5347959]
[1733151820026,0.12549,225.53,225.4,0.5347959]
[1733151821026,20.0,225.5,225.4,0.5347959]
[1733151823432,20.0,225.49,225.4,0.5347959]
[1733151824337,20.0,225.45,225.4,0.5347959]
[1733151824926,20.0,225.49,225.4,0.5347959]
[1733151825732,20.0,225.48,225.4,0.5347959]
[1733151827147,0.12549,225.47,225.4,0.5347959]
[1733151827321,20.12549,225.47,225.4,0.5347959]
[1733151827519,20.0,225.47,225.4,0.5347959]
[1733151827749,137.0,225.5,225.4,0.5347959]
[1733151828132,137.0,225.52,225.4,0.5347959]
[1733151829428,20.0,225.49,225.4,0.5347959]
[1733151829636,137.0,225.52,225.4,0.5347959]
[1733151829955,137.0,225.56,225.4,0.5347959]
[1733151830756,0.25098,225.55,225.4,0.5347959]
[1733151830960,0.12549,225.55,225.4,0.5347959]
[1733151831250,20.0,225.53,225.4,0.5347959]
[1733151831753,137.0,225.56,225.4,0.5347959]
[1733151832448,137.0,225.55,225.4,0.5347959]
[1733151832952,20.0,225.52,225.4,0.5347959]
[1733151833850,20.0,225.51,225.4,0.5347959]
[1733151834031,20.0,225.52,225.4,0.5347959]
[1733151834443,20.0,225.55,225.4,0.5347959]
[1733151834640,20.0,225.54,225.4,0.5347959]
[1733151835331,20.0,225.49,225.4,0.5347959]
[1733151835741,20.0,225.47,225.4,0.5347959]
[1733151836449,46.88236333,225.57,225.4,0.5347959]
[1733151836450,20.0,225.49,225.4,0.5347959]
[1733151837130,20.0,225.43,225.29,6.3889]
[1733151837326,20.0,225.39,225.29,6.3889]
[1733151837558,20.0,225.39,225.24,6.3889]
[1733151838057,20.12549,225.39,225.24,6.3889]
[1733151838232,0.12549,225.39,225.24,6.3889]
[1733151838544,0.12549,225.35,225.17,0.5347959]
[1733151838735,20.0,225.32,225.17,0.5347959]
[1733151839127,0.12549,225.31,225.17,0.5347959]
[1733151839330,20.0,225.26,225.05,6.4057]
[1733151839965,0.12549,225.26,225.05,6.4057]
[1733151840338,20.0,225.23,225.05,6.4057]
[1733151840543,20.0,225.19,225.05,6.4057]
[1733151840967,0.12549,225.18,225.05,6.4057]
[1733151841147,5.0,225.22,225.05,6.4057]
[1733151841466,21.89159,225.16,224.95,0.5347959]
[1733151841648,0.12549,225.12,224.95,0.5347959]
[1733151841839,0.12549,225.1,224.95,0.5347959]
[1733151842041,0.12549,225.06,224.95,0.5347959]
[1733151842238,20.12549,225.06,224.9,107.30769231]
[1733151842457,0.12549,225.0,224.9,107.30769231]
[1733151843266,0.12549,224.98,224.9,26.05495171]
[1733151843568,0.12549,224.96,224.9,17.5638024]
[1733151843746,0.12549,224.96,224.9,3.3344845]
[1733151844140,20.12549,224.96,224.9,3.3344845]
[1733151844552,20.0,224.96,224.9,3.3344845]
[1733151844865,10.0,225.03,224.9,3.3344845]
[1733151844866,20.0,224.98,224.9,3.3344845]
[1733151845042,21.67099801,224.98,224.9,3.3344845]
[1733151845248,20.0,224.98,224.9,3.3344845]
[1733151845463,20.0,225.05,224.9,3.3344845]
[1733151845757,10.12054444,225.1,224.9,3.3344845]
[1733151845951,3.2088839,225.08,224.9,3.3344845]
[1733151846263,0.12549,225.07,224.9,3.3344845]
[1733151846780,3.3343739,225.07,224.9,3.3344845]
[1733151847062,3.2088839,225.06,224.9,3.3344845]
[1733151847473,23.2088839,225.06,224.9,3.3344845]
[1733151847644,20.0,225.0,224.9,3.3344845]
[1733151848050,0.12549,224.99,224.9,3.3344845]
[1733151848252,20.0,225.0,224.9,3.3344845]
[1733151848953,25.0,225.05,224.9,3.3344845]
[1733151849156,20.0,225.04,224.9,3.3344845]
[1733151849353,10.0,225.19,224.92,33.95763234]
[1733151849556,217.48373383,225.21,224.95,29.917184]
[1733151849557,7.37790047,225.21,224.95,29.917184]
[1733151849757,5.0,225.13,224.95,6.1403]
[1733151849973,11.37234664,225.12,224.95,6.1403]
[1733151850159,0.12549,225.09,224.95,6.1403]
[1733151850361,0.12549,225.09,224.9,3.3344845]
[1733151850362,0.12549,225.07,224.9,3.3344845]
[1733151850747,7.12213842,225.11,224.9,3.3344845]
[1733151851074,0.12549,225.1,224.9,3.3344845]
[1733151851769,24.03264605,225.1,224.9,3.3344845]
[1733151851964,24.03264605,225.1,224.9,37.29211684]
[1733151852267,7.37790047,225.17,224.94,33.95763234]
[1733151852569,3.2088839,225.21,224.96,33.95763234]
[1733151852778,5.94198326,225.21,224.96,33.95763234]
[1733151853472,3.2088839,225.21,225.0,34.08312234]
[1733151853674,10.58678437,225.27,225.04,23.776884]
[1733151854551,3.2088839,225.27,225.03,16.584]
[1733151854751,0.12549,225.25,225.03,16.584]
[1733151855086,7.37790047,225.25,225.03,16.584]
[1733151855257,7.37790047,225.25,225.04,23.902374]
[1733151855649,3.2088839,225.27,225.04,23.902374]
[1733151855849,0.25098,225.26,225.04,23.902374]
[1733151856068,3.2088839,225.27,225.06,23.902374]
[1733151856274,137.0,225.29,225.07,33.95763234]
[1733151856497,137.0,225.3,225.05,57.73451634]
[1733151856657,144.37790047,225.29,225.05,57.73451634]
[1733151856984,0.25098,225.28,225.07,33.95763234]
[1733151857191,0.12549,225.26,225.07,33.95763234]
[1733151857480,1.01099776,225.27,225.06,23.776884]
[1733151857481,20.12549,225.24,225.06,23.776884]
[1733151857678,0.12549,225.22,225.05,33.95763234]
[1733151857882,1.01099776,225.21,225.1,33.95763234]
[1733151858375,1.01099776,225.21,225.13,33.95763234]
[1733151859182,1.01099776,225.21,225.09,5.0]
[1733151859183,1.01099776,225.21,225.12,33.95763234]
[1733151859673,137.0,225.32,225.09,5.0]
[1733151859674,20.0,225.29,225.11,33.95763234]
[1733151859993,21.01099776,225.29,225.12,23.776884]
[1733151860285,0.12549,225.28,225.12,23.776884]
[1733151860473,0.25098,225.28,225.12,23.776884]
[1733151860781,0.25098,225.28,225.09,5.0]
[1733151860782,1.01099776,225.29,225.15,6.5509]
[1733151860987,1.01099776,225.29,225.16,33.95763234]
[1733151861354,1.01099776,225.29,225.15,6.5509]
[1733151861574,0.25098,225.28,225.15,6.5509]
[1733151862170,0.12549,225.26,225.15,6.5509]
[1733151862387,0.12549,225.24,225.15,6.5509]
[1733151862882,157.0,225.27,225.15,6.5509]
[1733151862883,0.12549,225.26,225.15,6.5509]
[1733151863185,20.12549,225.26,225.15,6.5509]
[1733151863686,20.25098,225.28,225.15,6.5509]
[1733151863869,0.12549,225.26,225.15,6.5509]
[1733151864173,20.0,225.27,225.15,40.50853234]
[1733151864374,1.01099776,225.29,225.17,33.95763234]
[1733151864777,1.01099776,225.29,225.16,33.95763234]
[1733151865159,1.01099776,225.29,225.16,23.776884]
[1733151865489,137.0,225.38,225.19,49.68573234]
[1733151865661,0.25098,225.37,225.19,15.7281]
[1733151866554,0.12549,225.34,225.19,49.68573234]
[1733151867172,20.0,225.36,225.2,33.95763234]
[1733151867378,11.12136664,225.46,225.2,33.95763234]
[1733151869987,137.24956463,225.44,225.24,33.95763234]
[1733151870170,0.24956463,225.44,225.25,33.95763234]
[1733151870368,0.24956463,225.44,225.23,33.95763234]
[1733151870589,0.25098,225.43,225.24,33.95763234]
[1733151870790,0.12549,225.39,225.23,33.95763234]
[1733151871593,0.12549,225.39,225.24,33.95763234]
[1733151872091,0.12549,225.39,225.19,20.7281]
[1733151872092,20.0,225.36,225.19,49.68573234]
[1733151872393,0.12549,225.43,225.19,49.68573234]
[1733151872394,20.0,225.32,225.19,15.7281]
[1733151872966,20.0,225.32,225.2,33.95763234]
[1733151873264,20.0,225.32,225.19,49.68573234]
[1733151873468,139.94094573,225.43,225.19,49.68573234]
[1733151873469,20.0,225.39,225.21,33.95763234]
[1733151873666,20.0,225.39,225.19,15.7281]
[1733151873667,20.0,225.35,225.24,33.95763234]
[1733151873877,23.776884,225.41,225.24,33.95763234]
[1733151874187,23.776884,225.41,225.2,33.95763234]
[1733151874381,23.776884,225.41,225.23,33.95763234]
[1733151874569,137.0,225.42,225.25,33.95763234]
[1733151874771,137.0,225.45,225.25,33.95763234]
[1733151877707,0.5347959,225.51,225.35,33.95763234]
[1733151878009,0.5347959,225.51,225.37,40.14243234]
[1733151878301,0.12549,225.5,225.37,6.1848]
[1733151878894,137.5347959,225.51,225.37,6.1848]
[1733151879117,0.5347959,225.51,225.37,6.1848]
[1733151879399,20.0,225.5,225.37,6.1848]
[1733151879598,0.12549,225.49,225.37,6.1848]
[1733151880475,0.5347959,225.51,225.37,6.1848]
[1733151880476,0.5347959,225.51,225.37,40.14243234]
[1733151881021,0.5347959,225.51,225.39,33.95763234]
[1733151881282,0.12549,225.5,225.38,33.95763234]
[1733151881487,0.5347959,225.51,225.38,33.95763234]
[1733151882596,0.5347959,225.51,225.4,33.95763234]
[1733151882786,0.5347959,225.51,225.41,33.95763234]
[1733151883188,0.12549,225.5,225.42,33.95763234]
[1733151883778,0.5347959,225.51,225.44,33.95763234]
[1733151883973,0.5347959,225.51,225.45,33.95763234]
[1733151884205,0.5347959,225.51,225.44,33.95763234]
[1733151885190,0.5347959,225.51,225.43,33.95763234]
[1733151885424,0.5347959,225.51,225.44,33.95763234]
[1733151885985,0.5347959,225.51,225.45,33.95763234]
[1733151886381,0.5347959,225.51,225.47,33.95763234]
[1733151886601,0.5347959,225.51,225.48,33.95763234]
[1733151887002,0.5347959,225.51,225.47,33.95763234]
[1733151887186,0.5347959,225.51,225.5,33.95763234]
[1733151887374,0.5347959,225.51,225.49,33.95763234]
[1733151887698,0.5347959,225.51,225.5,33.95763234]
[1733151888109,0.5347959,225.51,225.5,74.63936468]
[1733151888412,0.5347959,225.51,225.5,40.68173234]
[1733151888725,0.5347959,225.51,225.5,64.58410634]
[1733151888900,0.5347959,225.51,225.5,40.80722234]
[1733151889079,0.5347959,225.51,225.5,51.89362234]
[1733151889594,0.5347959,225.51,225.5,89.256035]
[1733151889794,0.5347959,225.51,225.5,88.37178586]
[1733151890098,16.0934,225.72,225.53,0.12549]
[1733151890301,16.0934,225.72,225.55,20.76671093]
[1733151890485,0.25098,225.71,225.55,20.76671093]
[1733151890806,16.0934,225.72,225.58,20.76671093]
[1733151891187,0.12549,225.71,225.58,20.76671093]
[1733151891392,20.0,225.69,225.58,20.76671093]
[1733151891780,20.0,225.69,225.6,20.76671093]
[1733151891994,0.0743581,225.72,225.6,20.76671093]
[1733151893201,0.0743581,225.72,225.55,20.76671093]
[1733151893412,0.0743581,225.72,225.61,20.76671093]
[1733151893594,0.0743581,225.72,225.59,20.76671093]
[1733151894308,0.0743581,225.72,225.6,20.76671093]
[1733151895500,0.0743581,225.72,225.56,0.88404927]
[1733151895501,0.0743581,225.72,225.61,20.76671093]
[1733151896238,0.0743581,225.72,225.6,20.76671093]
[1733151897092,0.0743581,225.72,225.62,20.76671093]
[1733151897311,0.0743581,225.72,225.61,20.76671093]
[1733151897819,0.0743581,225.72,225.62,20.76671093]
[1733151898904,0.0743581,225.72,225.63,20.76671093]
[1733151899212,0.0743581,225.72,225.59,0.12549]
[1733151899213,0.0743581,225.72,225.65,20.76671093]